Cogmind - Beta 9.3 @@@ ROGUE MODE // 2019.12.30 @ 15:49:58 Player: winny Result: Destroyed by L-31 Rogue with Katana Performance ------------- Evolutions (0) 0 Regions Visited (4) 800 Robots Destroyed (42) 210 Value Destroyed (619) 619 Prototype IDs (2) 40 Alien Tech Used (0) 0 Bonus (0) 0 TOTAL SCORE: 1669 Bonus ------- None Cogmind --------- Core Integrity 0/250 Matter 277/300 Energy 96/100 System Corruption 0% Temperature Cool (0) Movement Rolling (90) Ox1 Location -9/Mines Parts ------- > --- POWER (1) -------- (None) > --- PROPULSION (2) --- Wheel > --- UTILITY (2) ------ Cooling System Medium Storage Unit > --- WEAPON (2) ------- Ripper > --- INVENTORY (8) ---- Light Ion Engine Improved Sensor Array EM Pulse Gun Light Assault Rifle Mini Grenade Launcher Mining Laser Peak State ------------ > --- POWER ------------ Ion Engine > --- PROPULSION ------- Wheel Wheel > --- UTILITY ---------- Cooling System Medium Storage Unit > --- WEAPON ----------- Small Laser Ripper > --- INVENTORY -------- Light Ion Engine Improved Sensor Array EM Pulse Gun Light Assault Rifle Mini Grenade Launcher Mining Laser [Rating: 11] Favorites ----------- Power Ion Engine Engine Ion Engine Propulsion Aluminum Leg Leg Aluminum Leg Wheel Wheel Utility Medium Storage Unit Device Cooling System Storage Medium Storage Unit Processor Seismic Analyzer Weapon Light Assault Rifle Energy Gun Small Laser Ballistic Gun Light Assault Rifle Launcher Mini Grenade Launcher Special Weapon Mining Laser Slashing Weapon Ripper Build | -11 -10 -10 -10 -9 ------- Run | Scr Mat Min Exi Min Slots Evolved . | . . . . . Power . | . . . . . Propulsion . | . . . . . Utility . | . . . . . Weapon . | . . . . . Parts Attached 31 | 7 18 3 1 2 Power 3 | 1 1 . 1 . Engine 3 | 1 1 . 1 . Core . | . . . . . Reactor . | . . . . . Propulsion 7 | 2 3 2 . . Treads . | . . . . . Leg 5 | 2 3 . . . Wheel 2 | . . 2 . . Hover . | . . . . . Flight . | . . . . . Utility 8 | 3 5 . . . Device 5 | 1 4 . . . Storage 2 | 1 1 . . . Processor 1 | 1 . . . . Hackware . | . . . . . Protection . | . . . . . Artifact . | . . . . . Weapon 13 | 1 9 1 . 2 Energy Gun 9 | 1 7 1 . . Energy Cannon . | . . . . . Ballistic Gun 1 | . 1 . . . Ballistic Cannon . | . . . . . Launcher 1 | . . . . 1 Special Weapon 1 | . 1 . . . Impact Weapon . | . . . . . Slashing Weapon 1 | . . . . 1 Piercing Weapon . | . . . . . Special Melee Weapon . | . . . . . Unidentified Prototypes . | . . . . . Parts Lost 7 | . 3 1 . 3 Power 2 | . 1 . . 1 Propulsion 2 | . . 1 . 1 Utility . | . . . . . Weapon 3 | . 2 . . 1 Highest Loss Streak 3 | . 1 1 . 3 Average Slot Usage (%) 98 | . 97 98 100 97 Engine 13 | . 13 14 14 13 Leg 15 | . 27 13 . . Wheel 11 | . . 13 28 27 Device 14 | . 14 14 14 14 Storage 14 | . 14 14 14 14 Energy Gun 16 | . 19 14 14 12 Ballistic Gun 9 | . 4 14 14 11 Naked Turns . | . . . . . Heaviest Build 18 | 12 18 17 17 17 Greatest Support 20 | 20 20 20 20 20 Greatest Overweight (x) 1 | . . 1 . . Average Overweight (x) . | . . . . . Largest Inventory Capacity 10 | 6 10 8 8 8 Average Capacity 7 | 5 6 8 8 8 Most Carried 8 | 6 7 6 8 7 Average Carried 5 | 2 5 5 6 6 Final Capacity 8 | 6 8 8 8 8 Final Carried 6 | 6 6 6 6 6 Class Distribution -------------------- 100% | Mutant Dominant Class ---------------- Mutant | -10/Materials Mutant | -10/Mines Mutant | -10/Exiles Mutant | -9/Mines Resources | -11 -10 -10 -10 -9 ----------- Run | Scr Mat Min Exi Min Matter Collected 516 | 270 196 50 . . Remotely . | . . . . . Salvage Created 1319 | 270 860 155 . 34 Parts 86 | 24 48 12 . 2 Haulers Intercepted 1 | . 1 . . . Recyclers Shooed 1 | 1 . . . . Parts Field Recycled . | . . . . . Retrieved Matter . | . . . . . Parts Self-Destructed . | . . . . . Prevented . | . . . . . Kills | -11 -10 -10 -10 -9 ------- Run | Scr Mat Min Exi Min Combat Hostiles Destroyed 20 | . 13 6 . 1 Guns 17 | . 11 6 . . AOE 3 | . 2 . . 1 Classes Destroyed 7 | 3 4 . . . Worker 9 | 2 5 2 . . Tunneler 6 | 5 . 1 . . Hauler 1 | . 1 . . . Recycler 3 | 1 2 . . . Watcher 3 | . 3 . . . Swarmer 9 | . 3 6 . . Grunt 11 | . 10 . . 1 Best Kill Streak 6 | 6 6 4 . 1 Combat Bots Only 4 | . 4 4 . 1 Max Kills in Single Turn 2 | 1 2 2 . 1 Gunslinging 1 | . . 1 . . Exploded 2 | . 2 . . 1 Melee . | . . . . . Uniques/NPCs Destroyed . | . . . . . Combat | -11 -10 -10 -10 -9 -------- Run | Scr Mat Min Exi Min Damage Taken 1020 | 30 683 121 . 186 Core 264 | 30 122 44 . 68 Absorbed by Shields . | . . . . . Core Remaining (%) 88 | 88 . . . . Volleys Fired 119 | 12 77 24 . 6 Largest 2 | 1 2 2 . 2 Hottest 115 | 40 115 60 . 70 Shots Fired 195 | 12 132 42 . 9 Gun 189 | 12 127 42 . 8 Cannon . | . . . . . Launcher 1 | . . . . 1 Special 5 | . 5 . . . Kinetic 60 | . 33 24 . 3 Thermal 83 | . 60 18 . 5 Explosive 1 | . . . . 1 Electromagnetic 51 | 12 39 . . . Robot Hit Streak 10 | 4 10 3 . 5 Robot Miss Streak 5 | 3 4 5 . 2 Penetration Max . | . . . . . Secondary Targets 4 | . 2 2 . . Max Gunslinging Chain 1 | . 1 1 . . Shots Hit Robots 116 | 8 76 20 . 12 Core Hits 56 | 9 34 10 . 3 Critical Hits 1 | . 1 . . . Critical Kills 1 | . 1 . . . Critical Parts Destroyed . | . . . . . Melee Attacks 7 | . . . . 7 Impact . | . . . . . Slashing 7 | . . . . 7 Piercing . | . . . . . Sneak Attacks . | . . . . . Combat Hostiles . | . . . . . Follow-up Attacks . | . . . . . Damage Inflicted 1590 | 174 1001 143 . 272 Guns 1244 | 134 937 143 . 30 Cannons . | . . . . . Explosions 196 | 40 64 . . 92 Melee 147 | . . . . 147 Ramming 3 | . . . . 3 Kinetic 232 | . 169 53 . 10 Thermal 696 | 40 546 90 . 20 Explosive 92 | . . . . 92 Electromagnetic 420 | 134 286 . . . Impact . | . . . . . Slashing 147 | . . . . 147 Piercing . | . . . . . Highest Corruption . | . . . . . Average Corruption . | . . . . . Corruption Purged . | . . . . . Overload Shots . | . . . . . Overflow Damage 6 | . . . . 6 Projectiles . | . . . . . Explosions . | . . . . . Melee 6 | . . . . 6 Knockbacks . | . . . . . Impact . | . . . . . Kinetic . | . . . . . Secondary . | . . . . . Self-Inflicted Damage 82 | 31 50 . . 1 Shots 2 | 1 1 . . . Rammed 1 | . . . . 1 Targets Rammed 1 | . . . . 1 Kicked . | . . . . . Crushed . | . . . . . Highest Temperature 335 | 12 335 . . . Average Temperature 85 | 12 86 . . . Received Heat Transfer 321 | . 309 . . 12 Siege Activations . | . . . . . Robots Corrupted . | . . . . . Combat Hostiles . | . . . . . Parts Fried . | . . . . . Impact Corruptions . | . . . . . Robots Melted . | . . . . . Combat Hostiles . | . . . . . Parts Melted 4 | . 3 1 . . Heat Transferred 1682 | 50 1382 200 . 50 Parts Sabotaged . | . . . . . Parts Stolen . | . . . . . Parts Stripped . | . . . . . Power Chain Reactions 2 | 1 1 . . . Missiles Intercepted . | . . . . . Alert | -11 -10 -10 -10 -9 ------- Run | Scr Mat Min Exi Min Peak Influence 285 | 40 285 190 . 20 Average Influence 138 | 18 175 161 . 1 Maximum Alert Level 1 | . 1 . . . Low Security (%) 83 | 100 62 100 . 100 Level 1 16 | . 37 . . . Level 2 . | . . . . . Level 3 . | . . . . . Level 4 . | . . . . . Level 5 . | . . . . . High Security . | . . . . . Max Security . | . . . . . Squads Dispatched 4 | . 4 . . . Investigation 1 | . 1 . . . Extermination . | . . . . . Reinforcement 3 | . 3 . . . Assault . | . . . . . Garrison . | . . . . . Intercept . | . . . . . Construction Impeded . | . . . . . Haulers Reinforced . | . . . . . Stealth | -11 -10 -10 -10 -9 --------- Run | Scr Mat Min Exi Min Distress Signals . | . . . . . Communications Jammed . | . . . . . Distress Signals . | . . . . . Times Spotted 40 | . 31 7 . 2 Peak Tracking Total 4 | . 4 3 . 2 Tactical Retreats 2 | . 2 . . . Traps | -11 -10 -10 -10 -9 ------- Run | Scr Mat Min Exi Min Traps Triggered 2 | . 2 . . . Indirectly . | . . . . . Trap Hack Attempts . | . . . . . Triggered . | . . . . . Disarmed . | . . . . . Reprogrammed . | . . . . . Reused . | . . . . . Traps Extracted . | . . . . . Installed . | . . . . . Triggered . | . . . . . Machines | -11 -10 -10 -10 -9 ---------- Run | Scr Mat Min Exi Min Machines Disabled 1 | . 1 . . . Max in Single Turn 1 | . 1 . . . Machines Sabotaged . | . . . . . Garrisons Compromised . | . . . . . Overloaded Fab Kills . | . . . . . Fab Network Shutdowns . | . . . . . Hacking | -11 -10 -10 -10 -9 --------- Run | Scr Mat Min Exi Min Machines Accessed 8 | . 4 . 4 . Terminals 2 | . 2 . . . Fabricators . | . . . . . Repair Stations 1 | . 1 . . . Recycling Units 1 | . 1 . . . Scanalyzers . | . . . . . Garrison Access . | . . . . . Total Hacks 65 | . 17 . 48 . Successful 57 | . 9 . 48 . Failed 8 | . 8 . . . Catastrophic . | . . . . . Database Lockouts . | . . . . . Manual . | . . . . . Terminals 9 | . 9 . . . Fabricators . | . . . . . Repair Stations 3 | . 3 . . . Recycling Units 5 | . 5 . . . Scanalyzers . | . . . . . Garrison Access . | . . . . . Terminal Hacks 52 | . 4 . 48 . Record 49 | . 1 . 48 . Prototype ID Bank 1 | . 1 . . . Emergency Access Points 1 | . 1 . . . Dispatch Records 1 | . 1 . . . Fabricator Hacks . | . . . . . Repair Station Hacks 2 | . 2 . . . Scan Component 1 | . 1 . . . Repair 1 | . 1 . . . Recycling Unit Hacks 3 | . 3 . . . Recycle Component 1 | . 1 . . . Process 1 | . 1 . . . Retrieve Matter 1 | . 1 . . . Scanalyzer . | . . . . . Garrison Access Hacks . | . . . . . Unauthorized Hacks . | . . . . . Terminals . | . . . . . Fabricators . | . . . . . Repair Stations . | . . . . . Recycling Units . | . . . . . Scanalyzers . | . . . . . Garrison Access . | . . . . . Data Cores Recovered . | . . . . . Used . | . . . . . Hacking Detections 4 | . 4 . . . Full Trace Events 3 | . 3 . . . Feedback Events . | . . . . . Feedback Blocked . | . . . . . Robot Schematics Acquired . | . . . . . Robots Built . | . . . . . Matter . | . . . . . Time . | . . . . . Total Robot Build Rating . | . . . . . Part Schematics Acquired . | . . . . . Parts Built . | . . . . . Matter . | . . . . . Time . | . . . . . Total Part Build Rating . | . . . . . Parts Repaired 1 | . 1 . . . Time 26 | . 26 . . . Parts Recycled 1 | . 1 . . . Recycled Matter 142 | . 142 . . . Retrieved Matter 201 | . 201 . . . Retrieved Components . | . . . . . Parts Scanalyzed . | . . . . . Part Schematics Acquired . | . . . . . Parts Damaged . | . . . . . Bothacking | -11 -10 -10 -10 -9 ------------ Run | Scr Mat Min Exi Min Used RIF Installer . | . . . . . Robots Hacked . | . . . . . Non-combat . | . . . . . Combat . | . . . . . Robot Hacks Applied . | . . . . . Relay Couplers Released . | . . . . . Robots Rewired . | . . . . . Allies Hacked . | . . . . . Hacks Repelled . | . . . . . Allies | -11 -10 -10 -10 -9 -------- Run | Scr Mat Min Exi Min Total Allies . | . . . . . Largest Group . | . . . . . Highest-Rated Group . | . . . . . Highest-Rated Ally . | . . . . . Total Orders . | . . . . . Ally Attacks . | . . . . . Total Damage . | . . . . . Kills . | . . . . . Allies Corrupted . | . . . . . Allies Melted . | . . . . . Intel | -11 -10 -10 -10 -9 ------- Run | Scr Mat Min Exi Min Robot Analysis Total . | . . . . . Derelict Logs Recovered 2 | . . 2 . . Drone Launches . | . . . . . Drone Recoveries . | . . . . . Exploration | -11 -10 -10 -10 -9 ------------- Run | Scr Mat Min Exi Min Turns Passed 1960 | 122 859 405 380 194 Spaces Moved 1517 | 68 483 360 468 138 Core 5 | 5 . . . . Treads . | . . . . . Legs 664 | 63 483 118 . . Wheels 848 | . . 242 468 138 Hover . | . . . . . Flight . | . . . . . Fastest Speed 50 | 50 120 80 80 80 Average Speed 97 | 114 120 93 80 80 Slowest Speed 150 | 120 120 150 80 80 Overloaded Moves . | . . . . . Propulsion Burnouts . | . . . . . Robots Hopped . | . . . . . Cave-ins Triggered . | . . . . . Exploration Rate (%) 58 | 3 79 90 90 28 Regions Visited 4 Branch Regions 3 Pre-discovered Areas 1 | . . . 1 . Known Exits Taken 1 | . . 1 . . Unknown Exits Taken 3 | 1 1 . 1 . Scrap Searched 1 | . . 1 . . Spaces Dug . | . . . . . Terrain Destroyed 12 | 4 3 . . 5 Melee . | . . . . . Projectile . | . . . . . AOE 12 | 4 3 . . 5 Actions | -11 -10 -10 -10 -9 --------- Run | Scr Mat Min Exi Min Total 1802 | 100 635 390 474 203 Wait 70 | . 23 . . 47 Move 1513 | 67 482 359 467 138 Hop . | . . . . . Pick Up 36 | 13 17 3 3 . Fast Attach 1 | . 1 . . . Attach 30 | 7 17 3 1 2 Detach 7 | . 5 . . 2 Swap . | . . . . . Drop 18 | 1 13 1 3 . Fire 119 | 12 77 24 . 6 Melee 7 | . . . . 7 Ram 1 | . . . . 1 Kick . | . . . . . Crush . | . . . . . Escape Stasis . | . . . . . Rewire . | . . . . . Trap . | . . . . . Miscellaneous . | . . . . . Route ------- -11/Scrapyard -10/Materials (discovered 3 exits: [*Mat x2] / [*Min]) -10/Mines (discovered 3 exits: [*Mat x2] / *Exi) -10/Exiles (discovered 2 exits: [*Min x2]) -9/Mines History --------- Turn | Location | Event 7 | -11/Scrapyard | Discovered new exit (range 16) 123 | -11/Scrapyard | Entered Materials 315 | -10/Materials | Build established: Mutant 410 | -10/Materials | Repaired EM Pulse Gun? 568 | -10/Materials | Discovered new exit (range 7) 795 | -10/Materials | Discovered new exit (range 8) 856 | -10/Materials | Discovered new exit (range 3) 958 | -10/Materials | Core integrity fell below 50% 982 | -10/Materials | Entered Mines 1060 | -10/Mines | Met a Derelict bent on vengeance 1060 | -10/Mines | Discovered new exit (range 6) 1101 | -10/Mines | Identified exit to Exiles 1106 | -10/Mines | Discovered new exit (range 7) 1225 | -10/Mines | Learned Materials security intel 1263 | -10/Mines | A weapon hastily lodged in a ceiling crevice suddenly fell to the ground 1384 | -10/Mines | Deemed a non-threat by the Exiles lab entrance 1387 | -10/Mines | Entered Exiles 1415 | -10/Exiles | Met 8R-AWN 1436 | -10/Exiles | Discovered new exit (range 14) 1469 | -10/Exiles | Met EX-HEX 1493 | -10/Exiles | Met EX-BIN 1577 | -10/Exiles | Met EX-DEC 1583 | -10/Exiles | Learned location of Zion (-7) 1644 | -10/Exiles | Visited The Gauntlet 1759 | -10/Exiles | Discovered new exit (range 11) 1767 | -10/Exiles | Entered Mines 1947 | -9/Mines | Core integrity fell below 20% 1961 | -9/Mines | Destroyed by L-31 Rogue with Katana Last Messages --------------- [Achievement: Tourist] LOCATION=UNKNOWN GOAL=ESCAPE 01768_ K-01 Serf collects debris. 01808_ T-07 Excavator is excavating. 01903_ Slammed into U-05 Engineer. Ramming works as a last resort when unarmed or blocked, but can have serious negative consequences. 01923_ K-01 Serf collects debris. 01935_ G-34 Mercenary destroyed. 01938_ K-01 Serf collects debris. 01948_ Sml. Laser destroyed. 01948_ Destroyed Imp. Ion Engine. 01951_ K-01 Serf collects debris. 01951_ Ion Engine destroyed. 01955_ K-01 Serf collects debris. 01956_ Wheel destroyed. 01956_ R-06 Scavenger collects Sml. Laser. 01959_ K-01 Serf collects debris. 01960_ R-06 Scavenger collects Heat Sink. Map ----- +----------------------------------------------------+ | ????????????????????????????????????????????????? | | ????????????????????????????????????????????????? | | ????????????????????????????????????????????????? | | ????????????????????????????????????????????????? | | ????????????????????????????????????????????????? | | ????????????????????????????????????????????????? | | ????????????????????????????????????????????????? | | ????????????????????????????????????????????????? | | ????????????????????????????????????????????????? | | ????????????????????????????????????????????????? | | ?????????????# ?????????????????????????????????? | | ??????##???#? ?????????????????????????????????? | | ??????# ??????????????????????????????????? | | ?????? """ ??????????????????????????????????? | | ??????? """ ???????????????????????????????????? | | ??????? """ ????????????????????????????????????? | | ??????? ????????###?????????????????????????? | | #??????# ?????????# ?????????????????????????? | | ##????# #?????????# #?????????????????????????? | | ##??# #?????????# #?????????????????????????? | | #??# #?????????# #?????????????????????????? | | #### ########### #####?????????????????????? | | #?????????????????????? | | ############### #?????????????????????? | | ### #######?????????????# #?????????????????????? | | ??# #???????????????????#@#?????????????????????? | | ??# #???????????????????#l ????????????????????? | | ??# #??????????????????? t ??????????????????? | | ??# ###############????? ????????????????? | | ??# #???? ??????????????? | | ??####### ####### #????# r% ????????????? | | ?????#### ###???# #????# ??????????? | | ?????# #???# ####? ##?????????? | | ?????# #???# #? ## k ##??????????? | | ?????# #???#### #?# #?## #??????????? | | ?????# #??????# #?## ##???# ???????????? | | ?????# #????### #???###?????## ???????????? | | ?????# #???## ##?????????????????????????? | | ?????########???# #?????????????????????????? | | ???????????????## #?????????????????????????? | | ?????????????### ##?????????????????????????? | | ????????????## ##??????????????????????????? | | ?????????#### ##???????????????????????????? | | ?????????# ##????????????????????????????? | | ?????????## ###?????????????????????????????? | | ??????????## ## #???????????????????????????????? | | ???????##### ## #???????????????????????????????? | | ???????# #???????????????????????????????? | | ???????# ########???????????????????????????????? | | ???????# #??????????????????????????????????????? | +----------------------------------------------------+ Best States ------------- Heat Dissipation 47 Energy Generation 10 Energy Capacity 250 Matter Stores 300 Matter Capacity 300 Sight Range 16 Robot Scan Range 13 Terrain Scan Range 16 Terrain Scan Density 10 Evasion (%) 44 Item Schematics ----------------- None Robot Schematics ------------------ None Fabricated ------------ Nothing Alien Tech Used ----------------- None Achievements -------------- Tourist Challenges ------------ None Game ------ Seed ReclamationCouplerFilter Manual? 0 Play Time 00:49:52 Cumulative 7.1 hours Start 2019.12.30 @ 10:02:50 End 2019.12.30 @ 15:49:58 Sessions 4 Manual Loads 0 Difficulty Rogue Special Mode None Game No. 2 Rogue 1 Adventurer 1 Explorer 0 Win Type - Total 0 Types 0/0/0/0/0/0/0 Lore% 11 Gallery% 9 Achievement% 14 Wizard Run 0 Options --------- ASCII 0 Keyboard 0 Movement Vi Keybinds 0 Fullscreen 1 Font 18/X11 Map View 76x50 Tactical HUD 1 Map Filters NONE Filters NONE Steam 1 RUN: bfa7562e-3290-4d85-8437-c392e6fba3c1